[Event "Betsys MČR v online bleskovém šachu 2021"]
[Site "Chess.com"]
[Date "2021.04.17"]
[Round "13"]
[White "jsulc"]
[Black "KdybyNecoTakNic"]
[Result "0-1"]
[WhiteElo "2094"]
[BlackElo "2299"]
[TimeControl "180+1"]
[EndTime "11:10:57 PDT"]
[Termination "Uživatel KdybyNecoTakNic zvítězil po vzdání soupeře"]

1. d4 {[%clk 0:03:00.9]} 1... Nf6 {[%clk 0:02:58.5]} 2. c4 {[%clk 0:02:59.2]}
2... e6 {[%clk 0:02:57.6]} 3. g3 {[%clk 0:02:56.2]} 3... c5 {[%clk 0:02:56.7]}
4. Nf3 {[%clk 0:02:54.8]} 4... cxd4 {[%clk 0:02:50.8]} 5. Nxd4 {[%clk 0:02:54]}
5... Nc6 {[%clk 0:02:51.1]} 6. Bg2 {[%clk 0:02:49.1]} 6... Qb6 {[%clk
0:02:50.9]} 7. e3 {[%clk 0:02:40.2]} 7... Bc5 {[%clk 0:02:28.3]} 8. Nb3 {[%clk
0:02:30]} 8... Be7 {[%clk 0:02:18.2]} 9. Nc3 {[%clk 0:02:25.5]} 9... O-O {[%clk
0:02:16.6]} 10. O-O {[%clk 0:02:25]} 10... a6 {[%clk 0:02:14.5]} 11. c5 {[%clk
0:02:13.9]} 11... Qb4 {[%clk 0:02:01.6]} 12. a3 {[%clk 0:02:05.1]} 12... Qc4
{[%clk 0:01:58.2]} 13. Qc2 {[%clk 0:01:26.9]} 13... Bxc5 {[%clk 0:01:29.2]} 14.
Nxc5 {[%clk 0:01:25.2]} 14... Qxc5 {[%clk 0:01:29.1]} 15. b4 {[%clk 0:01:24.9]}
15... Qc4 {[%clk 0:01:24.3]} 16. Bb2 {[%clk 0:01:22.3]} 16... d5 {[%clk
0:01:19.3]} 17. Rac1 {[%clk 0:01:20.8]} 17... Qg4 {[%clk 0:01:05.2]} 18. Na4
{[%clk 0:00:50.1]} 18... Qg6 {[%clk 0:00:55.3]} 19. Qe2 {[%clk 0:00:42.9]} 19...
Ne4 {[%clk 0:00:51.1]} 20. Nb6 {[%clk 0:00:41.1]} 20... Rb8 {[%clk 0:00:47.9]}
21. Rc2 {[%clk 0:00:33.2]} 21... Rd8 {[%clk 0:00:39.1]} 22. Rfc1 {[%clk
0:00:32.2]} 22... Bd7 {[%clk 0:00:38.4]} 23. Bf3 {[%clk 0:00:16.9]} 23... Be8
{[%clk 0:00:27.1]} 24. Bh5 {[%clk 0:00:15.6]} 24... Qg5 {[%clk 0:00:24.7]} 25.
f4 {[%clk 0:00:10.6]} 25... Qh6 {[%clk 0:00:19.8]} 26. Bf3 {[%clk 0:00:10.2]}
26... Ne7 {[%clk 0:00:17.3]} 27. Kg2 {[%clk 0:00:09.2]} 27... Nc6 {[%clk
0:00:17]} 28. h3 {[%clk 0:00:08.2]} 28... Qg6 {[%clk 0:00:16.1]} 29. Bh5 {[%clk
0:00:06.2]} 29... Qxg3+ {[%clk 0:00:15.5]} 30. Kf1 {[%clk 0:00:03.7]} 30...
Qxh3+ {[%clk 0:00:15.6]} 0-1

[Event "Betsys MČR v online bleskovém šachu 2021"]
[Site "Chess.com"]
[Date "2021.04.17"]
[Round "13"]
[White "Lipican"]
[Black "Vesselovsky52"]
[Result "0-1"]
[WhiteElo "2118"]
[BlackElo "2319"]
[TimeControl "180+1"]
[EndTime "11:11:01 PDT"]
[Termination "Uživatel Vesselovsky52 zvítězil po vzdání soupeře"]

1. d4 {[%clk 0:03:00.9]} 1... c5 {[%clk 0:02:58.6]} 2. d5 {[%clk 0:02:59.8]}
2... e5 {[%clk 0:02:57.9]} 3. e4 {[%clk 0:02:56.2]} 3... d6 {[%clk 0:02:57.7]}
4. Nd2 {[%clk 0:02:54]} 4... Nd7 {[%clk 0:02:56.5]} 5. Ngf3 {[%clk 0:02:50.8]}
5... g6 {[%clk 0:02:54.8]} 6. a4 {[%clk 0:02:49.1]} 6... Bg7 {[%clk 0:02:53.5]}
7. Bd3 {[%clk 0:02:48.4]} 7... Ne7 {[%clk 0:02:48.3]} 8. Nc4 {[%clk 0:02:44.3]}
8... Nb6 {[%clk 0:02:46.2]} 9. a5 {[%clk 0:02:35.1]} 9... Nxc4 {[%clk
0:02:44.8]} 10. Bxc4 {[%clk 0:02:35.2]} 10... O-O {[%clk 0:02:44.6]} 11. O-O
{[%clk 0:02:32.7]} 11... h6 {[%clk 0:02:43.2]} 12. Ra3 {[%clk 0:02:30]} 12... f5
{[%clk 0:02:41.6]} 13. Nd2 {[%clk 0:02:24]} 13... f4 {[%clk 0:02:30.7]} 14. Be2
{[%clk 0:02:22]} 14... h5 {[%clk 0:02:22.6]} 15. Nc4 {[%clk 0:02:20.9]} 15...
Rb8 {[%clk 0:02:13.7]} 16. Bd2 {[%clk 0:02:15.5]} 16... Kh7 {[%clk 0:02:08.1]}
17. Kh1 {[%clk 0:02:09.3]} 17... Ng8 {[%clk 0:02:06.9]} 18. h3 {[%clk
0:01:48.1]} 18... Nf6 {[%clk 0:01:56.4]} 19. f3 {[%clk 0:01:37.4]} 19... g5
{[%clk 0:01:56]} 20. Be1 {[%clk 0:01:32.9]} 20... g4 {[%clk 0:01:52.9]} 21. fxg4
{[%clk 0:01:31.1]} 21... hxg4 {[%clk 0:01:51.3]} 22. Bh4 {[%clk 0:01:31.1]}
22... f3 {[%clk 0:01:39.1]} 23. gxf3 {[%clk 0:01:26.7]} 23... gxh3 {[%clk
0:01:38]} 24. Rg1 {[%clk 0:01:24.6]} 24... Bh6 {[%clk 0:01:29.9]} 25. Ne3 {[%clk
0:01:16.8]} 25... Bxe3 {[%clk 0:01:20.7]} 26. Rxe3 {[%clk 0:01:15.3]} 26... Bd7
{[%clk 0:01:18.8]} 27. Qe1 {[%clk 0:01:04.3]} 27... Qe8 {[%clk 0:01:15.6]} 28.
Bxf6 {[%clk 0:01:01.3]} 28... Rxf6 {[%clk 0:01:14]} 29. Qh4+ {[%clk 0:01:00.8]}
29... Rh6 {[%clk 0:01:11.1]} 30. Qg5 {[%clk 0:00:56.6]} 30... Qf7 {[%clk
0:01:08.2]} 31. Kh2 {[%clk 0:00:55.2]} 31... Rf8 {[%clk 0:01:03.2]} 32. Rg3
{[%clk 0:00:50.4]} 32... Rg8 {[%clk 0:00:59.6]} 33. Qxg8+ {[%clk 0:00:48.9]}
33... Qxg8 {[%clk 0:00:59.4]} 34. Rxg8 {[%clk 0:00:47.7]} 34... Kxg8 {[%clk
0:00:59.1]} 35. Bf1 {[%clk 0:00:48]} 35... Kf7 {[%clk 0:00:57]} 36. Rb3 {[%clk
0:00:44.7]} 36... Bc8 {[%clk 0:00:55.6]} 37. f4 {[%clk 0:00:32.6]} 37... exf4
{[%clk 0:00:50.7]} 38. Rf3 {[%clk 0:00:31.4]} 38... Rf6 {[%clk 0:00:47.6]} 39.
Bxh3 {[%clk 0:00:29.8]} 39... Rh6 {[%clk 0:00:38.1]} 40. Rxf4+ {[%clk 0:00:28]}
40... Kg6 {[%clk 0:00:37.3]} 41. Rf3 {[%clk 0:00:23.3]} 41... Kg5 {[%clk
0:00:36.3]} 42. Kg2 {[%clk 0:00:20.6]} 42... Bxh3+ {[%clk 0:00:34.6]} 43. Rxh3
{[%clk 0:00:19.6]} 43... Rxh3 {[%clk 0:00:34.1]} 44. Kxh3 {[%clk 0:00:19.6]}
44... Kf4 {[%clk 0:00:33.9]} 45. Kg2 {[%clk 0:00:19.5]} 45... Kxe4 {[%clk
0:00:33]} 0-1

[Event "Betsys MČR v online bleskovém šachu 2021"]
[Site "Chess.com"]
[Date "2021.04.17"]
[Round "13"]
[White "TommyLud"]
[Black "Mikulas19"]
[Result "1-0"]
[WhiteElo "2134"]
[BlackElo "1891"]
[TimeControl "180+1"]
[EndTime "11:11:01 PDT"]
[Termination "Uživatel TommyLud zvítězil po vzdání soupeře"]

1. d4 {[%clk 0:03:00.9]} 1... d5 {[%clk 0:02:59.4]} 2. c4 {[%clk 0:03:01.2]}
2... c6 {[%clk 0:02:59.6]} 3. Nf3 {[%clk 0:03:00.8]} 3... e6 {[%clk 0:02:58.6]}
4. e3 {[%clk 0:02:57.3]} 4... Nf6 {[%clk 0:02:58.1]} 5. Nc3 {[%clk 0:02:56.6]}
5... Nbd7 {[%clk 0:02:57.9]} 6. Qc2 {[%clk 0:02:56.7]} 6... Be7 {[%clk
0:02:54.1]} 7. b3 {[%clk 0:02:54.9]} 7... O-O {[%clk 0:02:44.2]} 8. Bb2 {[%clk
0:02:54.5]} 8... b6 {[%clk 0:02:40.7]} 9. Bd3 {[%clk 0:02:50]} 9... Bb7 {[%clk
0:02:39.7]} 10. O-O {[%clk 0:02:49.7]} 10... c5 {[%clk 0:02:36.3]} 11. cxd5
{[%clk 0:02:46.8]} 11... exd5 {[%clk 0:02:27.1]} 12. Rac1 {[%clk 0:02:38.3]}
12... Rc8 {[%clk 0:02:25.4]} 13. Qb1 {[%clk 0:02:36.3]} 13... cxd4 {[%clk
0:02:19.1]} 14. Nxd4 {[%clk 0:02:36.1]} 14... Ne5 {[%clk 0:02:18.5]} 15. Be2
{[%clk 0:02:33.5]} 15... Ne4 {[%clk 0:01:53]} 16. Nxe4 {[%clk 0:02:27]} 16...
dxe4 {[%clk 0:01:52.2]} 17. Rfd1 {[%clk 0:02:26.8]} 17... Rxc1 {[%clk
0:01:46.6]} 18. Rxc1 {[%clk 0:02:26.1]} 18... Bd6 {[%clk 0:01:40.1]} 19. Qa1
{[%clk 0:02:00.7]} 19... Qh4 {[%clk 0:01:04.9]} 20. h3 {[%clk 0:01:59.8]} 20...
Nf3+ {[%clk 0:00:53.4]} 21. Nxf3 {[%clk 0:01:28]} 21... exf3 {[%clk 0:00:51]}
22. Bxf3 {[%clk 0:01:28]} 22... Bxf3 {[%clk 0:00:46.7]} 23. gxf3 {[%clk
0:01:28]} 23... Qxh3 {[%clk 0:00:40]} 24. f4 {[%clk 0:01:27.9]} 24... Qg4+
{[%clk 0:00:32.3]} 25. Kf1 {[%clk 0:01:27.6]} 25... Qg6 {[%clk 0:00:22.4]} 26.
Rd1 {[%clk 0:01:23.4]} 26... Bb8 {[%clk 0:00:17.8]} 27. Ba3 {[%clk 0:00:53.3]}
27... Re8 {[%clk 0:00:16.2]} 28. Qd4 {[%clk 0:00:53.1]} 28... Qe6 {[%clk
0:00:15.2]} 29. Qd5 {[%clk 0:00:48]} 29... Qxd5 {[%clk 0:00:12.5]} 30. Rxd5
{[%clk 0:00:47.9]} 30... h6 {[%clk 0:00:09.5]} 31. Ke2 {[%clk 0:00:47.4]} 31...
Kh7 {[%clk 0:00:08.6]} 32. Kf3 {[%clk 0:00:47]} 32... Kg6 {[%clk 0:00:08.4]} 33.
f5+ {[%clk 0:00:46.8]} 33... Kf6 {[%clk 0:00:07.4]} 34. Bb2+ {[%clk 0:00:46.4]}
34... Be5 {[%clk 0:00:06.2]} 35. Rxe5 {[%clk 0:00:36.7]} 35... Rxe5 {[%clk
0:00:05.9]} 36. Kf4 {[%clk 0:00:36.5]} 36... g5+ {[%clk 0:00:05.8]} 37. fxg6
{[%clk 0:00:36.5]} 37... fxg6 {[%clk 0:00:05.9]} 38. Bxe5+ {[%clk 0:00:35.8]}
38... Ke6 {[%clk 0:00:06.5]} 39. Bg7 {[%clk 0:00:35.8]} 39... g5+ {[%clk
0:00:05.7]} 40. Kg4 {[%clk 0:00:35.9]} 40... Kf7 {[%clk 0:00:05.9]} 41. Bxh6
{[%clk 0:00:35.8]} 41... Kg6 {[%clk 0:00:06.1]} 42. Bxg5 {[%clk 0:00:36.4]} 1-0

[Event "Betsys MČR v online bleskovém šachu 2021"]
[Site "Chess.com"]
[Date "2021.04.17"]
[Round "13"]
[White "matej-c"]
[Black "JaraLinhart"]
[Result "0-1"]
[WhiteElo "1930"]
[BlackElo "1729"]
[TimeControl "180+1"]
[EndTime "11:11:03 PDT"]
[Termination "Uživatel JaraLinhart zvítězil po vzdání soupeře"]

1. d4 {[%clk 0:03:00.9]} 1... Nf6 {[%clk 0:02:57.3]} 2. c4 {[%clk 0:03:00.7]}
2... e6 {[%clk 0:02:57.5]} 3. Nc3 {[%clk 0:03:00.1]} 3... Bb4 {[%clk 0:02:56.7]}
4. Qc2 {[%clk 0:03:00.3]} 4... O-O {[%clk 0:02:55.3]} 5. a3 {[%clk 0:02:59.7]}
5... Bxc3+ {[%clk 0:02:52.2]} 6. Qxc3 {[%clk 0:03:00.6]} 6... b6 {[%clk
0:02:48.1]} 7. Nf3 {[%clk 0:02:58]} 7... Bb7 {[%clk 0:02:48.1]} 8. g3 {[%clk
0:02:57.5]} 8... d5 {[%clk 0:02:40.6]} 9. Bg2 {[%clk 0:02:54.1]} 9... Ne4 {[%clk
0:02:39.8]} 10. Qc2 {[%clk 0:02:52.3]} 10... c5 {[%clk 0:02:28]} 11. dxc5 {[%clk
0:02:48.1]} 11... Nxc5 {[%clk 0:02:25.7]} 12. O-O {[%clk 0:02:39.3]} 12... Ne4
{[%clk 0:02:08.7]} 13. Rd1 {[%clk 0:02:29.9]} 13... Qf6 {[%clk 0:02:01.1]} 14.
cxd5 {[%clk 0:02:16.9]} 14... Bxd5 {[%clk 0:01:58]} 15. Be3 {[%clk 0:02:03.1]}
15... Na6 {[%clk 0:01:47.2]} 16. Bd4 {[%clk 0:01:59.4]} 16... Qe7 {[%clk
0:01:37.4]} 17. Rac1 {[%clk 0:01:45.3]} 17... Nac5 {[%clk 0:01:24]} 18. Nd2
{[%clk 0:01:16.1]} 18... Nxd2 {[%clk 0:00:31.5]} 19. Bxd5 {[%clk 0:01:14.7]}
19... exd5 {[%clk 0:00:30.5]} 20. Qxd2 {[%clk 0:01:05.6]} 20... Nb3 {[%clk
0:00:27.4]} 21. Qf4 {[%clk 0:00:51.8]} 21... Nxc1 {[%clk 0:00:26.1]} 22. Rxc1
{[%clk 0:00:52.7]} 22... Qe4 {[%clk 0:00:22.8]} 23. Qd2 {[%clk 0:00:46.7]} 23...
Rac8 {[%clk 0:00:21.2]} 24. e3 {[%clk 0:00:46.8]} 24... Rc4 {[%clk 0:00:18.5]}
25. Rxc4 {[%clk 0:00:43.7]} 25... dxc4 {[%clk 0:00:18.4]} 26. Qb4 {[%clk
0:00:42.6]} 26... Rc8 {[%clk 0:00:13.2]} 27. a4 {[%clk 0:00:35.7]} 27... Qd5
{[%clk 0:00:12.8]} 28. Qe7 {[%clk 0:00:32.1]} 28... Qc6 {[%clk 0:00:11.7]} 29.
Qg5 {[%clk 0:00:27.9]} 29... f6 {[%clk 0:00:11]} 30. Qf4 {[%clk 0:00:26.5]}
30... Rf8 {[%clk 0:00:09.9]} 31. a5 {[%clk 0:00:22.2]} 31... bxa5 {[%clk
0:00:09.7]} 32. Bc3 {[%clk 0:00:22]} 32... Rd8 {[%clk 0:00:09.3]} 33. Qf5 {[%clk
0:00:20]} 33... Rd1+ {[%clk 0:00:08.9]} 0-1

[Event "Betsys MČR v online bleskovém šachu 2021"]
[Site "Chess.com"]
[Date "2021.04.17"]
[Round "13"]
[White "SayQueen"]
[Black "Lukuluss88"]
[Result "1/2-1/2"]
[WhiteElo "2020"]
[BlackElo "2033"]
[TimeControl "180+1"]
[EndTime "11:11:04 PDT"]
[Termination "Remíza opakováním pozice"]

1. e4 {[%clk 0:02:58.3]} 1... d5 {[%clk 0:02:59.1]} 2. exd5 {[%clk 0:02:57.2]}
2... Qxd5 {[%clk 0:02:58.5]} 3. Nc3 {[%clk 0:02:57.1]} 3... Qa5 {[%clk
0:02:56.7]} 4. d4 {[%clk 0:02:56.5]} 4... c6 {[%clk 0:02:56.5]} 5. Bd3 {[%clk
0:02:52.7]} 5... Nf6 {[%clk 0:02:54.6]} 6. h3 {[%clk 0:02:52]} 6... e6 {[%clk
0:02:48.7]} 7. Nf3 {[%clk 0:02:51.7]} 7... Bb4 {[%clk 0:02:43.9]} 8. Bd2 {[%clk
0:02:51]} 8... Nd5 {[%clk 0:02:37.9]} 9. Nxd5 {[%clk 0:02:40.6]} 9... Bxd2+
{[%clk 0:02:35.6]} 10. Qxd2 {[%clk 0:02:39.5]} 10... Qxd2+ {[%clk 0:02:34.9]}
11. Nxd2 {[%clk 0:02:38]} 11... cxd5 {[%clk 0:02:32.8]} 12. O-O {[%clk
0:02:37.8]} 12... O-O {[%clk 0:02:31.8]} 13. Nf3 {[%clk 0:02:35.2]} 13... Nc6
{[%clk 0:02:29.6]} 14. c3 {[%clk 0:02:35.4]} 14... Bd7 {[%clk 0:02:28.7]} 15. b4
{[%clk 0:02:35]} 15... a6 {[%clk 0:02:28.5]} 16. a4 {[%clk 0:02:32.7]} 16... Ne7
{[%clk 0:02:25.9]} 17. Ne5 {[%clk 0:02:30.1]} 17... Bc6 {[%clk 0:02:16.6]} 18.
Rfb1 {[%clk 0:02:23.2]} 18... f6 {[%clk 0:02:14.5]} 19. Nxc6 {[%clk 0:02:21.7]}
19... bxc6 {[%clk 0:02:14.3]} 20. Re1 {[%clk 0:02:09.7]} 20... Kf7 {[%clk
0:02:11.2]} 21. Re2 {[%clk 0:01:47.8]} 21... g6 {[%clk 0:01:59.1]} 22. Rae1
{[%clk 0:01:44.7]} 22... a5 {[%clk 0:01:53.1]} 23. Rxe6 {[%clk 0:01:39.1]} 23...
Rfe8 {[%clk 0:01:52.2]} 24. b5 {[%clk 0:01:36.4]} 24... Ng8 {[%clk 0:01:19.1]}
25. Rxe8 {[%clk 0:01:31.2]} 25... Rxe8 {[%clk 0:01:18.6]} 26. Rxe8 {[%clk
0:01:22.9]} 26... Kxe8 {[%clk 0:01:18.2]} 27. bxc6 {[%clk 0:01:15.9]} 27... Kd8
{[%clk 0:01:17.4]} 28. c4 {[%clk 0:01:14.9]} 28... Ne7 {[%clk 0:01:12.9]} 29.
cxd5 {[%clk 0:01:11.6]} 29... Nxd5 {[%clk 0:01:12.6]} 30. Bc4 {[%clk 0:01:09.7]}
30... Nc3 {[%clk 0:01:10.8]} 31. d5 {[%clk 0:00:49.4]} 31... Kc7 {[%clk
0:00:48.2]} 32. Bb3 {[%clk 0:00:46.5]} 32... Kd6 {[%clk 0:00:31.1]} 33. Kf1
{[%clk 0:00:43.5]} 33... Ne4 {[%clk 0:00:30.8]} 34. Ke1 {[%clk 0:00:38.9]} 34...
Nc5 {[%clk 0:00:30.5]} 35. Bc2 {[%clk 0:00:32.4]} 35... Na6 {[%clk 0:00:29.2]}
36. Be4 {[%clk 0:00:20.2]} 36... Nc5 {[%clk 0:00:28.3]} 37. Bc2 {[%clk
0:00:18.9]} 37... Na6 {[%clk 0:00:27.6]} 38. Be4 {[%clk 0:00:18.9]} 38... Nc5
{[%clk 0:00:21.8]} 39. Bc2 {[%clk 0:00:18.8]} 1/2-1/2

[Event "Betsys MČR v online bleskovém šachu 2021"]
[Site "Chess.com"]
[Date "2021.04.17"]
[Round "13"]
[White "FBingoPlayer"]
[Black "reflexia64"]
[Result "1-0"]
[WhiteElo "2195"]
[BlackElo "2259"]
[TimeControl "180+1"]
[EndTime "11:11:05 PDT"]
[Termination "Uživatel FBingoPlayer zvítězil na čas"]

1. Nc3 {[%clk 0:03:00.9]} 1... g6 {[%clk 0:02:55.9]} 2. e4 {[%clk 0:03:00.6]}
2... Bg7 {[%clk 0:02:55.8]} 3. d4 {[%clk 0:03:01.2]} 3... d6 {[%clk 0:02:55.7]}
4. Bg5 {[%clk 0:03:01.1]} 4... h6 {[%clk 0:02:53.5]} 5. Be3 {[%clk 0:03:01.3]}
5... a6 {[%clk 0:02:51]} 6. f4 {[%clk 0:03:01.5]} 6... b5 {[%clk 0:02:50]} 7.
Be2 {[%clk 0:03:01]} 7... Nd7 {[%clk 0:02:49.3]} 8. Bf3 {[%clk 0:03:00.4]} 8...
Bb7 {[%clk 0:02:48.6]} 9. h4 {[%clk 0:02:53.4]} 9... h5 {[%clk 0:02:39.3]} 10.
a3 {[%clk 0:02:49.2]} 10... c5 {[%clk 0:02:35.3]} 11. Nge2 {[%clk 0:02:47.6]}
11... Qc7 {[%clk 0:02:28.4]} 12. Qd2 {[%clk 0:02:41.7]} 12... Ngf6 {[%clk
0:02:26.8]} 13. Ng3 {[%clk 0:02:31.2]} 13... b4 {[%clk 0:02:21.5]} 14. axb4
{[%clk 0:02:30.8]} 14... cxb4 {[%clk 0:02:21]} 15. Nce2 {[%clk 0:02:31.5]} 15...
a5 {[%clk 0:02:20.4]} 16. O-O {[%clk 0:02:26.1]} 16... Nb6 {[%clk 0:02:17.5]}
17. b3 {[%clk 0:02:22.9]} 17... O-O {[%clk 0:02:16.1]} 18. f5 {[%clk 0:02:20.4]}
18... Rfc8 {[%clk 0:02:11.3]} 19. Rac1 {[%clk 0:02:16.7]} 19... Nbd7 {[%clk
0:02:01.2]} 20. Bh6 {[%clk 0:02:13.8]} 20... Nf8 {[%clk 0:01:59.1]} 21. Bxg7
{[%clk 0:02:02.2]} 21... Kxg7 {[%clk 0:01:58.3]} 22. e5 {[%clk 0:02:02.7]} 22...
dxe5 {[%clk 0:01:40.5]} 23. dxe5 {[%clk 0:02:03.6]} 23... Nd5 {[%clk 0:01:28.2]}
24. Bxd5 {[%clk 0:01:47.9]} 24... Qc5+ {[%clk 0:01:26.5]} 25. Rf2 {[%clk
0:01:32.1]} 25... Qxd5 {[%clk 0:01:25.5]} 26. f6+ {[%clk 0:01:32.2]} 26... exf6
{[%clk 0:01:24]} 27. exf6+ {[%clk 0:01:32.2]} 27... Kh7 {[%clk 0:01:22.9]} 28.
Qe1 {[%clk 0:00:44.4]} 28... Ne6 {[%clk 0:01:19.9]} 29. Rd1 {[%clk 0:00:42.7]}
29... Qc6 {[%clk 0:01:01.6]} 30. Nd4 {[%clk 0:00:42.7]} 30... Nxd4 {[%clk
0:01:00.3]} 31. Rxd4 {[%clk 0:00:43.6]} 31... Re8 {[%clk 0:00:57.9]} 32. Qd1
{[%clk 0:00:43.8]} 32... Re5 {[%clk 0:00:46.3]} 33. Rd7 {[%clk 0:00:41.6]} 33...
Kg8 {[%clk 0:00:43.4]} 34. Qd2 {[%clk 0:00:39.6]} 34... g5 {[%clk 0:00:19.5]}
35. hxg5 {[%clk 0:00:35.5]} 35... Rae8 {[%clk 0:00:16.4]} 36. g6 {[%clk
0:00:35.1]} 36... Re1+ {[%clk 0:00:13]} 37. Kh2 {[%clk 0:00:34.3]} 37... Qxd7
{[%clk 0:00:06.5]} 38. Qxd7 {[%clk 0:00:33.3]} 38... Rf8 {[%clk 0:00:06.2]} 39.
Qxb7 {[%clk 0:00:32.5]} 39... Re6 {[%clk 0:00:02.7]} 40. Nxh5 {[%clk 0:00:32.1]}
1-0

[Event "Betsys MČR v online bleskovém šachu 2021"]
[Site "Chess.com"]
[Date "2021.04.17"]
[Round "13"]
[White "Michaela1994"]
[Black "malviny"]
[Result "1-0"]
[WhiteElo "1643"]
[BlackElo "1196"]
[TimeControl "180+1"]
[EndTime "11:11:05 PDT"]
[Termination "Uživatel Michaela1994 zvítězil na čas"]

1. e4 {[%clk 0:03:00.9]} 1... e5 {[%clk 0:03:00.1]} 2. Nf3 {[%clk 0:03:00.2]}
2... Nc6 {[%clk 0:03:00.1]} 3. Bc4 {[%clk 0:03:00.5]} 3... Be7 {[%clk
0:02:59.7]} 4. O-O {[%clk 0:02:58.7]} 4... d6 {[%clk 0:02:56.6]} 5. c3 {[%clk
0:02:57.3]} 5... Na5 {[%clk 0:02:54.7]} 6. Be2 {[%clk 0:02:53.3]} 6... Nf6
{[%clk 0:02:53.6]} 7. Qc2 {[%clk 0:02:50.4]} 7... O-O {[%clk 0:02:51]} 8. d4
{[%clk 0:02:49.5]} 8... exd4 {[%clk 0:02:46.1]} 9. cxd4 {[%clk 0:02:49.4]} 9...
d5 {[%clk 0:02:40.8]} 10. e5 {[%clk 0:02:44.2]} 10... Nd7 {[%clk 0:02:30.1]} 11.
Nc3 {[%clk 0:02:42.7]} 11... Nb6 {[%clk 0:02:28.9]} 12. Bd3 {[%clk 0:02:36.5]}
12... g6 {[%clk 0:02:24.2]} 13. Ne2 {[%clk 0:02:33]} 13... Be6 {[%clk
0:02:15.2]} 14. Ng3 {[%clk 0:02:31.3]} 14... Nac4 {[%clk 0:02:03.8]} 15. b3
{[%clk 0:02:22.5]} 15... Na5 {[%clk 0:01:59.5]} 16. Bh6 {[%clk 0:02:18.9]} 16...
Re8 {[%clk 0:01:56.6]} 17. Qd2 {[%clk 0:02:00.7]} 17... Nc6 {[%clk 0:01:50.5]}
18. Ng5 {[%clk 0:01:54]} 18... Bf8 {[%clk 0:01:38.7]} 19. Nxe6 {[%clk
0:01:44.5]} 19... fxe6 {[%clk 0:01:32]} 20. Bg5 {[%clk 0:01:32.9]} 20... Qd7
{[%clk 0:01:23.5]} 21. h4 {[%clk 0:01:22.5]} 21... Ne7 {[%clk 0:01:22.6]} 22. h5
{[%clk 0:01:20.6]} 22... Kh8 {[%clk 0:01:17.9]} 23. hxg6 {[%clk 0:01:17.1]}
23... Nxg6 {[%clk 0:01:12.8]} 24. Bf6+ {[%clk 0:01:05.8]} 24... Bg7 {[%clk
0:01:09.1]} 25. Qh6 {[%clk 0:01:00.5]} 25... Bxf6 {[%clk 0:01:06.3]} 26. exf6
{[%clk 0:01:00.2]} 26... Qf7 {[%clk 0:01:03.7]} 27. Nh5 {[%clk 0:00:44.9]} 27...
Rg8 {[%clk 0:01:00.1]} 28. Rae1 {[%clk 0:00:24.6]} 28... Rae8 {[%clk 0:00:59.4]}
29. f4 {[%clk 0:00:20.3]} 29... Nd7 {[%clk 0:00:57.4]} 30. f5 {[%clk 0:00:19.9]}
30... exf5 {[%clk 0:00:33.8]} 31. Rxe8 {[%clk 0:00:18.8]} 31... Qxe8 {[%clk
0:00:30.5]} 32. Bxf5 {[%clk 0:00:18.4]} 32... Qf7 {[%clk 0:00:23]} 33. Bxd7
{[%clk 0:00:17.9]} 33... Qxd7 {[%clk 0:00:07.8]} 34. f7 {[%clk 0:00:17.7]} 1-0

[Event "Betsys MČR v online bleskovém šachu 2021"]
[Site "Chess.com"]
[Date "2021.04.17"]
[Round "13"]
[White "Lisak007"]
[Black "PetrSoucek"]
[Result "0-1"]
[WhiteElo "1804"]
[BlackElo "2010"]
[TimeControl "180+1"]
[EndTime "11:11:06 PDT"]
[Termination "Uživatel PetrSoucek zvítězil po vzdání soupeře"]

1. e4 {[%clk 0:03:00.9]} 1... c5 {[%clk 0:02:53.3]} 2. Nc3 {[%clk 0:03:00.2]}
2... a6 {[%clk 0:02:52.5]} 3. f4 {[%clk 0:02:56]} 3... b5 {[%clk 0:02:52.2]} 4.
d3 {[%clk 0:02:55.8]} 4... Bb7 {[%clk 0:02:51.6]} 5. Nf3 {[%clk 0:02:55.3]} 5...
e6 {[%clk 0:02:52]} 6. g3 {[%clk 0:02:55.5]} 6... d5 {[%clk 0:02:52.1]} 7. Qe2
{[%clk 0:02:53.8]} 7... dxe4 {[%clk 0:02:14.3]} 8. Nxe4 {[%clk 0:02:48.7]} 8...
Nf6 {[%clk 0:02:13.2]} 9. Bg2 {[%clk 0:02:45.6]} 9... Be7 {[%clk 0:02:09.6]} 10.
O-O {[%clk 0:02:45.3]} 10... Nbd7 {[%clk 0:02:09.2]} 11. b3 {[%clk 0:02:43.8]}
11... O-O {[%clk 0:02:08.2]} 12. Bb2 {[%clk 0:02:43.8]} 12... Qc7 {[%clk
0:01:51]} 13. Rae1 {[%clk 0:02:43]} 13... Rad8 {[%clk 0:01:50]} 14. Nfg5 {[%clk
0:02:37.4]} 14... h6 {[%clk 0:01:47.1]} 15. Nxf6+ {[%clk 0:02:35.5]} 15... Bxf6
{[%clk 0:01:45]} 16. Bxf6 {[%clk 0:02:33.3]} 16... Nxf6 {[%clk 0:01:44.4]} 17.
Ne4 {[%clk 0:02:33.3]} 17... Nxe4 {[%clk 0:01:40.2]} 18. dxe4 {[%clk 0:02:33.3]}
18... c4 {[%clk 0:01:38.7]} 19. Rd1 {[%clk 0:02:22.4]} 19... a5 {[%clk
0:01:26.9]} 20. Rxd8 {[%clk 0:02:02.4]} 20... Rxd8 {[%clk 0:01:23.7]} 21. Rd1
{[%clk 0:02:02]} 21... Rxd1+ {[%clk 0:01:11]} 22. Qxd1 {[%clk 0:02:02.1]} 22...
c3 {[%clk 0:01:09.6]} 23. Qd4 {[%clk 0:01:54.8]} 23... b4 {[%clk 0:01:06.9]} 24.
Kf2 {[%clk 0:01:52.8]} 24... Kf8 {[%clk 0:01:01.8]} 25. Ke3 {[%clk 0:01:52.2]}
25... Ba6 {[%clk 0:00:57.7]} 26. Bf3 {[%clk 0:01:45]} 26... f6 {[%clk
0:00:50.6]} 27. Be2 {[%clk 0:01:43.5]} 27... Bxe2 {[%clk 0:00:47.7]} 28. Kxe2
{[%clk 0:01:43.4]} 28... Ke7 {[%clk 0:00:46.1]} 29. Ke3 {[%clk 0:01:43]} 29...
e5 {[%clk 0:00:38.1]} 30. fxe5 {[%clk 0:01:39]} 30... fxe5 {[%clk 0:00:38.1]}
31. Qd5 {[%clk 0:01:26.2]} 31... Kf6 {[%clk 0:00:37.6]} 32. Qb5 {[%clk
0:01:15.1]} 32... Qd8 {[%clk 0:00:31.3]} 33. Qd5 {[%clk 0:01:08.8]} 33... Qxd5
{[%clk 0:00:30.6]} 34. exd5 {[%clk 0:01:08.9]} 34... Ke7 {[%clk 0:00:30.7]} 35.
Ke4 {[%clk 0:01:04.8]} 35... Kd6 {[%clk 0:00:30.5]} 36. h4 {[%clk 0:01:03.4]}
36... h5 {[%clk 0:00:29.8]} 37. Ke3 {[%clk 0:00:37]} 37... Kxd5 {[%clk
0:00:29.2]} 38. Kd3 {[%clk 0:00:36.4]} 38... e4+ {[%clk 0:00:29.1]} 39. Ke3
{[%clk 0:00:35.8]} 39... Ke5 {[%clk 0:00:29.7]} 40. Ke2 {[%clk 0:00:34.7]} 40...
Kd4 {[%clk 0:00:28.6]} 41. Kf2 {[%clk 0:00:34.8]} 41... e3+ {[%clk 0:00:24]} 42.
Kf3 {[%clk 0:00:33.8]} 42... g6 {[%clk 0:00:23.2]} 43. Kg2 {[%clk 0:00:24.5]}
43... Ke4 {[%clk 0:00:22.9]} 44. Kf1 {[%clk 0:00:24.6]} 44... Kf3 {[%clk
0:00:22.8]} 45. Ke1 {[%clk 0:00:23.9]} 0-1